[Event "Early-Titled-Tuesday-Blitz-October-17-2023"]
[Site "Chess.com"]
[Date "2023.10.17"]
[Round "1"]
[White "Sofia_Blokhin"]
[Black "aghasiyevkamal"]
[Result "0-1"]
[WhiteElo "2309"]
[BlackElo "2618"]
[TimeControl "180+1"]
[EndTime "8:07:22 PDT"]
[Termination "aghasiyevkamal won on time"]

1. d4 {[%clk 0:03:00.9]} 1... d6 {[%clk 0:02:58.3]} 2. e4 {[%clk 0:03:00]} 2...
Nf6 {[%clk 0:02:57.9]} 3. Nc3 {[%clk 0:02:59.8]} 3... Nbd7 {[%clk 0:02:58.4]} 4.
f3 {[%clk 0:02:59.9]} 4... e5 {[%clk 0:02:58]} 5. Be3 {[%clk 0:02:59.6]} 5... c6
{[%clk 0:02:57]} 6. Qd2 {[%clk 0:02:59.6]} 6... Be7 {[%clk 0:02:54.8]} 7. O-O-O
{[%clk 0:03:00]} 7... Qa5 {[%clk 0:02:53.6]} 8. Kb1 {[%clk 0:02:58.9]} 8... b5
{[%clk 0:02:52.8]} 9. a3 {[%clk 0:02:51.8]} 9... Rb8 {[%clk 0:02:52.2]} 10. g4
{[%clk 0:02:48.2]} 10... b4 {[%clk 0:02:46.2]} 11. Na2 {[%clk 0:02:42.2]} 11...
c5 {[%clk 0:02:43]} 12. dxc5 {[%clk 0:02:38.1]} 12... dxc5 {[%clk 0:02:43.9]}
13. g5 {[%clk 0:02:32.6]} 13... Nh5 {[%clk 0:02:43.4]} 14. Bc4 {[%clk
0:02:21.9]} 14... Nb6 {[%clk 0:02:36.7]} 15. axb4 {[%clk 0:01:58.2]} 15... cxb4
{[%clk 0:02:25.2]} 16. Bb3 {[%clk 0:01:52.8]} 16... O-O {[%clk 0:02:22.3]} 17.
Qg2 {[%clk 0:01:36.2]} 17... Be6 {[%clk 0:02:18.6]} 18. Bxe6 {[%clk 0:01:24.4]}
18... fxe6 {[%clk 0:02:17.6]} 19. Qg4 {[%clk 0:01:23.8]} 19... g6 {[%clk
0:01:51.5]} 20. Qxe6+ {[%clk 0:01:22.3]} 20... Rf7 {[%clk 0:01:51.3]} 21. Ne2
{[%clk 0:01:02.7]} 21... Ng7 {[%clk 0:01:50.6]} 22. Qb3 {[%clk 0:00:56.8]} 22...
Qa6 {[%clk 0:01:41.6]} 23. Ng3 {[%clk 0:00:53.3]} 23... Nc4 {[%clk 0:01:40.5]}
24. Bc1 {[%clk 0:00:46.5]} 24... Qc6 {[%clk 0:01:37.6]} 25. Rd5 {[%clk 0:00:32]}
25... a5 {[%clk 0:01:34.8]} 26. Rhd1 {[%clk 0:00:27.2]} 26... Ne6 {[%clk
0:01:30.2]} 27. Ne2 {[%clk 0:00:17.7]} 27... a4 {[%clk 0:01:26.1]} 28. Qd3
{[%clk 0:00:17.1]} 28... b3 {[%clk 0:01:24.2]} 29. Nac3 {[%clk 0:00:14.4]} 29...
bxc2+ {[%clk 0:01:21.3]} 30. Kxc2 {[%clk 0:00:14]} 30... Bb4 {[%clk 0:01:09.5]}
31. h4 {[%clk 0:00:11.5]} 31... a3 {[%clk 0:01:05.5]} 32. b3 {[%clk 0:00:10.4]}
32... Nb6 {[%clk 0:01:01.8]} 33. h5 {[%clk 0:00:08]} 33... Rc8 {[%clk
0:00:49.9]} 34. Bd2 {[%clk 0:00:06.5]} 34... Nd4+ {[%clk 0:00:46.9]} 35. Nxd4
{[%clk 0:00:06.4]} 35... exd4 {[%clk 0:00:45.9]} 36. Qxd4 {[%clk 0:00:06.9]}
36... Nxd5 {[%clk 0:00:44.7]} 37. exd5 {[%clk 0:00:07.3]} 37... Qc5 {[%clk
0:00:40]} 38. Qc4 {[%clk 0:00:05.1]} 38... Qxc4 {[%clk 0:00:38.9]} 39. bxc4
{[%clk 0:00:05.5]} 39... Rxc4 {[%clk 0:00:35.7]} 40. Kb3 {[%clk 0:00:06.2]}
40... Rh4 {[%clk 0:00:34.4]} 41. f4 {[%clk 0:00:04.6]} 41... Rb7 {[%clk
0:00:32.5]} 42. d6 {[%clk 0:00:02.2]} 42... Rh3 {[%clk 0:00:31.5]} 43. d7 {[%clk
0:00:01.6]} 43... Bxc3+ {[%clk 0:00:29.4]} 0-1

[Event "Early-Titled-Tuesday-Blitz-October-17-2023"]
[Site "Chess.com"]
[Date "2023.10.17"]
[Round "1"]
[White "GMKrikor"]
[Black "WindWhistler11"]
[Result "1-0"]
[WhiteElo "2821"]
[BlackElo "2480"]
[TimeControl "180+1"]
[EndTime "8:07:26 PDT"]
[Termination "GMKrikor won by resignation"]

1. Nf3 {[%clk 0:02:57.6]} 1... Nf6 {[%clk 0:02:53.7]} 2. c4 {[%clk 0:02:57.7]}
2... d6 {[%clk 0:02:47.5]} 3. d4 {[%clk 0:02:57.4]} 3... Nbd7 {[%clk 0:02:46.5]}
4. Nc3 {[%clk 0:02:57.3]} 4... e5 {[%clk 0:02:44.4]} 5. e4 {[%clk 0:02:58]} 5...
Be7 {[%clk 0:02:43.8]} 6. Be2 {[%clk 0:02:55.1]} 6... O-O {[%clk 0:02:43.4]} 7.
O-O {[%clk 0:02:54.5]} 7... c6 {[%clk 0:02:42.8]} 8. Be3 {[%clk 0:02:53.6]} 8...
Ng4 {[%clk 0:02:41]} 9. Bd2 {[%clk 0:02:53.5]} 9... Qc7 {[%clk 0:02:38.2]} 10.
h3 {[%clk 0:02:48.7]} 10... Ngf6 {[%clk 0:02:37.2]} 11. Be3 {[%clk 0:02:49.4]}
11... Re8 {[%clk 0:02:34.2]} 12. d5 {[%clk 0:02:49.5]} 12... Nf8 {[%clk
0:02:32.6]} 13. Rc1 {[%clk 0:02:47]} 13... Ng6 {[%clk 0:02:29.6]} 14. Re1 {[%clk
0:02:45.4]} 14... Bd7 {[%clk 0:02:16.7]} 15. b4 {[%clk 0:02:44.4]} 15... a5
{[%clk 0:02:06.5]} 16. dxc6 {[%clk 0:02:44.7]} 16... bxc6 {[%clk 0:02:06.5]} 17.
b5 {[%clk 0:02:45.1]} 17... c5 {[%clk 0:02:01.7]} 18. a4 {[%clk 0:02:44.2]}
18... Be6 {[%clk 0:01:55]} 19. Bf1 {[%clk 0:02:42]} 19... Nd7 {[%clk 0:01:50.6]}
20. Nd5 {[%clk 0:02:36.3]} 20... Bxd5 {[%clk 0:01:49.7]} 21. cxd5 {[%clk
0:02:37.2]} 21... Nb6 {[%clk 0:01:47.1]} 22. Nd2 {[%clk 0:02:37.9]} 22... h6
{[%clk 0:01:45.7]} 23. g3 {[%clk 0:02:26.3]} 23... Bg5 {[%clk 0:01:43.4]} 24.
Bxg5 {[%clk 0:02:26.3]} 24... hxg5 {[%clk 0:01:43.3]} 25. Nc4 {[%clk 0:02:22.6]}
25... Nf8 {[%clk 0:01:23.8]} 26. Nxb6 {[%clk 0:02:20.5]} 26... Qxb6 {[%clk
0:01:23.7]} 27. Qg4 {[%clk 0:02:21.2]} 27... Qd8 {[%clk 0:01:20.8]} 28. Kg2
{[%clk 0:02:18.3]} 28... Nd7 {[%clk 0:01:19.5]} 29. Bd3 {[%clk 0:02:10.9]} 29...
Nb6 {[%clk 0:01:19.8]} 30. Bc2 {[%clk 0:02:11.2]} 30... Rc8 {[%clk 0:01:16.7]}
31. Rh1 {[%clk 0:02:11.1]} 31... Qf6 {[%clk 0:01:01.1]} 32. h4 {[%clk
0:02:10.6]} 32... gxh4 {[%clk 0:00:56.6]} 33. Rxh4 {[%clk 0:02:11.5]} 33... g6
{[%clk 0:00:54.4]} 34. Rch1 {[%clk 0:02:09]} 34... Kf8 {[%clk 0:00:54.6]} 35.
Qe2 {[%clk 0:01:41.5]} 35... Ke7 {[%clk 0:00:52.1]} 36. Qd2 {[%clk 0:01:42]}
36... Ra8 {[%clk 0:00:49.5]} 37. Rh7 {[%clk 0:01:42.1]} 37... Rg8 {[%clk
0:00:46.7]} 38. Bb3 {[%clk 0:01:33.9]} 38... g5 {[%clk 0:00:45.2]} 39. Bd1
{[%clk 0:01:28]} 39... Rg6 {[%clk 0:00:44.6]} 40. Bg4 {[%clk 0:01:20.3]} 40...
Nxa4 {[%clk 0:00:32.3]} 41. Bf5 {[%clk 0:01:20.4]} 41... Rg7 {[%clk 0:00:32.3]}
42. R7h6 {[%clk 0:01:20]} 42... Qxh6 {[%clk 0:00:11.8]} 43. Rxh6 {[%clk
0:01:18.9]} 43... Nb6 {[%clk 0:00:12.7]} 44. Rh5 {[%clk 0:00:55.9]} 44... Kf6
{[%clk 0:00:11.2]} 45. Rh1 {[%clk 0:00:37.6]} 45... a4 {[%clk 0:00:08.6]} 46.
Ra1 {[%clk 0:00:38.2]} 46... Rgg8 {[%clk 0:00:05.2]} 47. Bg4 {[%clk 0:00:37.5]}
47... Ra7 {[%clk 0:00:05.2]} 48. Qe2 {[%clk 0:00:37.8]} 48... a3 {[%clk
0:00:04.2]} 49. Qf3+ {[%clk 0:00:38.7]} 49... Ke7 {[%clk 0:00:03.8]} 50. Rxa3
{[%clk 0:00:38.2]} 50... Rga8 {[%clk 0:00:01.3]} 51. Rxa7+ {[%clk 0:00:37.8]}
51... Rxa7 {[%clk 0:00:02.2]} 52. Qf5 {[%clk 0:00:37.6]} 1-0

[Event "Early-Titled-Tuesday-Blitz-October-17-2023"]
[Site "Chess.com"]
[Date "2023.10.17"]
[Round "1"]
[White "kikoveiga"]
[Black "valemava"]
[Result "1-0"]
[WhiteElo "2592"]
[BlackElo "2259"]
[TimeControl "180+1"]
[EndTime "8:07:26 PDT"]
[Termination "kikoveiga won by checkmate"]

1. e4 {[%clk 0:02:55.4]} 1... c5 {[%clk 0:02:58.7]} 2. Nf3 {[%clk 0:02:51.2]}
2... Qa5 {[%clk 0:02:58.1]} 3. c3 {[%clk 0:02:49.6]} 3... Nc6 {[%clk 0:02:57.5]}
4. Bc4 {[%clk 0:02:49.6]} 4... e6 {[%clk 0:02:52.3]} 5. O-O {[%clk 0:02:49.4]}
5... b5 {[%clk 0:02:51.5]} 6. Bb3 {[%clk 0:02:47.2]} 6... c4 {[%clk 0:02:51.2]}
7. Bc2 {[%clk 0:02:47.6]} 7... Bb7 {[%clk 0:02:49.8]} 8. b3 {[%clk 0:02:45.5]}
8... cxb3 {[%clk 0:02:39.5]} 9. Bxb3 {[%clk 0:02:46.4]} 9... Nge7 {[%clk
0:02:37.2]} 10. d4 {[%clk 0:02:46.4]} 10... Ng6 {[%clk 0:02:36.4]} 11. h4 {[%clk
0:02:42.1]} 11... h5 {[%clk 0:02:35.7]} 12. d5 {[%clk 0:02:40.5]} 12... Nce5
{[%clk 0:02:34.2]} 13. Nxe5 {[%clk 0:02:40]} 13... Nxe5 {[%clk 0:02:33.8]} 14.
Bf4 {[%clk 0:02:40.9]} 14... Ng6 {[%clk 0:02:32.3]} 15. Bg3 {[%clk 0:02:40.1]}
15... e5 {[%clk 0:02:32]} 16. d6 {[%clk 0:02:28.4]} 16... Bxe4 {[%clk
0:02:29.2]} 17. Re1 {[%clk 0:02:24.7]} 17... Bc6 {[%clk 0:01:44.1]} 18. Bxe5
{[%clk 0:02:22.9]} 18... O-O-O {[%clk 0:01:33.9]} 19. Bg3 {[%clk 0:02:08]} 19...
f5 {[%clk 0:01:25.2]} 20. Bf7 {[%clk 0:01:46.4]} 20... f4 {[%clk 0:01:23.8]} 21.
Bxg6 {[%clk 0:01:46.8]} 21... fxg3 {[%clk 0:01:23.7]} 22. fxg3 {[%clk
0:01:47.4]} 22... Qb6+ {[%clk 0:01:21.5]} 23. Kh2 {[%clk 0:01:46.8]} 23... Qc5
{[%clk 0:01:17.7]} 24. Nd2 {[%clk 0:01:33.9]} 24... Qxd6 {[%clk 0:01:09.6]} 25.
Qc2 {[%clk 0:01:20.2]} 25... Be7 {[%clk 0:01:08.8]} 26. Kh3 {[%clk 0:00:16.1]}
26... Bf6 {[%clk 0:01:04.9]} 27. Be4 {[%clk 0:00:15.3]} 27... Rhe8 {[%clk
0:01:03]} 28. Bxc6 {[%clk 0:00:15.5]} 28... dxc6 {[%clk 0:01:02.4]} 29. Ne4
{[%clk 0:00:15.5]} 29... Qf8 {[%clk 0:00:55.2]} 30. Kh2 {[%clk 0:00:15.6]} 30...
Be5 {[%clk 0:00:54.2]} 31. c4 {[%clk 0:00:13.8]} 31... b4 {[%clk 0:00:53.8]} 32.
Rab1 {[%clk 0:00:13.8]} 32... a5 {[%clk 0:00:53.5]} 33. a3 {[%clk 0:00:13.9]}
33... Qe7 {[%clk 0:00:45.2]} 34. Kg1 {[%clk 0:00:11.9]} 34... Bd4+ {[%clk
0:00:41.6]} 35. Kh1 {[%clk 0:00:11.8]} 35... c5 {[%clk 0:00:38.2]} 36. axb4
{[%clk 0:00:12]} 36... axb4 {[%clk 0:00:31.5]} 37. Qa4 {[%clk 0:00:11.5]} 37...
Qb7 {[%clk 0:00:28.5]} 38. Nd6+ {[%clk 0:00:10.3]} 38... Rxd6 {[%clk 0:00:27.4]}
39. Rxe8+ {[%clk 0:00:11.2]} 39... Rd8 {[%clk 0:00:24.4]} 40. Rxd8+ {[%clk
0:00:11.4]} 40... Kxd8 {[%clk 0:00:24.2]} 41. Re1 {[%clk 0:00:12.3]} 41... Qd7
{[%clk 0:00:23.2]} 42. Qa8+ {[%clk 0:00:11.7]} 42... Kc7 {[%clk 0:00:23.3]} 43.
Qa7+ {[%clk 0:00:11.6]} 43... Kd6 {[%clk 0:00:21.4]} 44. Qb6+ {[%clk 0:00:11.5]}
44... Qc6 {[%clk 0:00:21.6]} 45. Re6+ {[%clk 0:00:11.6]} 45... Kxe6 {[%clk
0:00:22]} 46. Qxc6+ {[%clk 0:00:12.5]} 46... Ke5 {[%clk 0:00:22.4]} 47. Qd5+
{[%clk 0:00:13.1]} 47... Kf6 {[%clk 0:00:21.3]} 48. Qxh5 {[%clk 0:00:14]} 48...
g6 {[%clk 0:00:20.7]} 49. Qf3+ {[%clk 0:00:14.9]} 49... Ke5 {[%clk 0:00:20.8]}
50. g4 {[%clk 0:00:15.7]} 50... b3 {[%clk 0:00:20.5]} 51. Qxb3 {[%clk
0:00:15.6]} 51... Kf4 {[%clk 0:00:20.9]} 52. g5 {[%clk 0:00:16.2]} 52... Kg4
{[%clk 0:00:20.7]} 53. Qh3+ {[%clk 0:00:17.1]} 53... Kh5 {[%clk 0:00:20.7]} 54.
g4# {[%clk 0:00:16.5]} 1-0

[Event "Early-Titled-Tuesday-Blitz-October-17-2023"]
[Site "Chess.com"]
[Date "2023.10.17"]
[Round "1"]
[White "Rosh1610"]
[Black "Makswolf200817"]
[Result "1-0"]
[WhiteElo "2442"]
[BlackElo "2702"]
[TimeControl "180+1"]
[EndTime "8:07:28 PDT"]
[Termination "Rosh1610 won on time"]

1. e4 {[%clk 0:02:58.8]} 1... c5 {[%clk 0:02:59.2]} 2. Nf3 {[%clk 0:02:58.7]}
2... d6 {[%clk 0:02:57.8]} 3. d4 {[%clk 0:02:58.8]} 3... cxd4 {[%clk 0:02:58]}
4. Nxd4 {[%clk 0:02:59.4]} 4... Nf6 {[%clk 0:02:58.6]} 5. Nc3 {[%clk 0:02:58]}
5... a6 {[%clk 0:02:59]} 6. Bc4 {[%clk 0:02:53.8]} 6... e6 {[%clk 0:02:58.5]} 7.
Bb3 {[%clk 0:02:53.5]} 7... b5 {[%clk 0:02:58.6]} 8. O-O {[%clk 0:02:52.5]} 8...
Qb6 {[%clk 0:02:58.5]} 9. Be3 {[%clk 0:02:49.8]} 9... Qb7 {[%clk 0:02:58.4]} 10.
f3 {[%clk 0:02:38.7]} 10... Be7 {[%clk 0:02:57.6]} 11. a4 {[%clk 0:02:35.6]}
11... b4 {[%clk 0:02:47.3]} 12. Nce2 {[%clk 0:02:33.6]} 12... Nbd7 {[%clk
0:02:41.2]} 13. c4 {[%clk 0:02:16.7]} 13... Nc5 {[%clk 0:02:20.6]} 14. Bc2
{[%clk 0:02:07.3]} 14... O-O {[%clk 0:02:16.6]} 15. b3 {[%clk 0:01:54.4]} 15...
Rd8 {[%clk 0:02:07.2]} 16. Qe1 {[%clk 0:01:45.2]} 16... e5 {[%clk 0:01:41.6]}
17. Nf5 {[%clk 0:01:45]} 17... Bxf5 {[%clk 0:01:41.5]} 18. exf5 {[%clk
0:01:45.9]} 18... d5 {[%clk 0:01:39.6]} 19. cxd5 {[%clk 0:01:45.1]} 19... Nxd5
{[%clk 0:01:38.7]} 20. Bf2 {[%clk 0:01:44.6]} 20... Rac8 {[%clk 0:01:33.9]} 21.
Rd1 {[%clk 0:01:40.1]} 21... Bf6 {[%clk 0:01:25.6]} 22. Rd2 {[%clk 0:01:12.5]}
22... Bg5 {[%clk 0:01:15]} 23. Rd1 {[%clk 0:01:10.8]} 23... Ne3 {[%clk
0:01:12.4]} 24. Rxd8+ {[%clk 0:00:38.3]} 24... Rxd8 {[%clk 0:01:12.4]} 25. Bxe3
{[%clk 0:00:11.1]} 25... Bxe3+ {[%clk 0:01:13.3]} 26. Kh1 {[%clk 0:00:11.3]}
26... Nd3 {[%clk 0:01:05.5]} 27. Qh4 {[%clk 0:00:05.7]} 27... Qb6 {[%clk
0:00:46.5]} 28. h3 {[%clk 0:00:02.6]} 28... Nf2+ {[%clk 0:00:39.6]} 29. Kh2
{[%clk 0:00:02.3]} 29... Rd2 {[%clk 0:00:40.3]} 30. f6 {[%clk 0:00:01.3]} 30...
Rxc2 {[%clk 0:00:34.4]} 31. Rxf2 {[%clk 0:00:01.7]} 31... Bxf2 {[%clk
0:00:32.6]} 32. Qe4 {[%clk 0:00:01.6]} 32... Rc8 {[%clk 0:00:29.4]} 33. Qg4
{[%clk 0:00:02.2]} 1-0

[Event "Early-Titled-Tuesday-Blitz-October-17-2023"]
[Site "Chess.com"]
[Date "2023.10.17"]
[Round "1"]
[White "HamedWafa4"]
[Black "Khuslen2008"]
[Result "1-0"]
[WhiteElo "2617"]
[BlackElo "2307"]
[TimeControl "180+1"]
[EndTime "8:07:28 PDT"]
[Termination "HamedWafa4 won on time"]

1. e4 {[%clk 0:02:57.5]} 1... c5 {[%clk 0:02:59.1]} 2. Nc3 {[%clk 0:02:56]} 2...
e6 {[%clk 0:02:58.2]} 3. g3 {[%clk 0:02:53.8]} 3... d5 {[%clk 0:02:35.3]} 4.
exd5 {[%clk 0:02:51.3]} 4... exd5 {[%clk 0:02:34.8]} 5. Bg2 {[%clk 0:02:51.3]}
5... Nf6 {[%clk 0:02:34.4]} 6. Nf3 {[%clk 0:02:35.8]} 6... d4 {[%clk 0:02:33.1]}
7. Ne2 {[%clk 0:02:35.4]} 7... Bd6 {[%clk 0:02:31]} 8. O-O {[%clk 0:02:34.9]}
8... O-O {[%clk 0:02:30.6]} 9. d3 {[%clk 0:02:30.9]} 9... Nc6 {[%clk 0:02:28]}
10. Bf4 {[%clk 0:02:27]} 10... Bg4 {[%clk 0:02:23.6]} 11. h3 {[%clk 0:02:25]}
11... Be6 {[%clk 0:01:59.6]} 12. Re1 {[%clk 0:02:14.3]} 12... Bd5 {[%clk
0:01:57.6]} 13. Bxd6 {[%clk 0:02:12.4]} 13... Qxd6 {[%clk 0:01:57.3]} 14. Nf4
{[%clk 0:02:13]} 14... Rfe8 {[%clk 0:01:49.9]} 15. Nxd5 {[%clk 0:02:08.8]} 15...
Nxd5 {[%clk 0:01:49]} 16. Qd2 {[%clk 0:02:09.1]} 16... h6 {[%clk 0:01:46.9]} 17.
a3 {[%clk 0:02:07.2]} 17... b5 {[%clk 0:01:45.7]} 18. Rxe8+ {[%clk 0:02:05.8]}
18... Rxe8 {[%clk 0:01:45.3]} 19. Re1 {[%clk 0:02:05.3]} 19... Re6 {[%clk
0:01:35.5]} 20. Nh4 {[%clk 0:01:52]} 20... Nce7 {[%clk 0:01:29.4]} 21. Kh2
{[%clk 0:01:42.9]} 21... Re5 {[%clk 0:01:15.3]} 22. Nf3 {[%clk 0:01:41.6]} 22...
Re6 {[%clk 0:01:14.9]} 23. Rxe6 {[%clk 0:01:41.4]} 23... Qxe6 {[%clk 0:01:14.5]}
24. Qa5 {[%clk 0:01:41.9]} 24... Qb6 {[%clk 0:01:10]} 25. Qe1 {[%clk 0:01:40.7]}
25... c4 {[%clk 0:01:04.6]} 26. Qe5 {[%clk 0:01:38.8]} 26... c3 {[%clk
0:00:57.7]} 27. b3 {[%clk 0:01:33.6]} 27... Qf6 {[%clk 0:00:24.1]} 28. Qxf6
{[%clk 0:01:26.4]} 28... gxf6 {[%clk 0:00:17.9]} 29. Nxd4 {[%clk 0:01:27.1]}
29... b4 {[%clk 0:00:17]} 30. a4 {[%clk 0:01:22.4]} 30... a6 {[%clk 0:00:16.5]}
31. Kg1 {[%clk 0:01:18.4]} 31... Kg7 {[%clk 0:00:16.5]} 32. Kf1 {[%clk 0:01:18]}
32... Kg6 {[%clk 0:00:16.6]} 33. Ke2 {[%clk 0:01:18.2]} 33... f5 {[%clk
0:00:16]} 34. f4 {[%clk 0:01:17.7]} 34... Kf6 {[%clk 0:00:15.8]} 35. a5 {[%clk
0:01:12.3]} 35... h5 {[%clk 0:00:15.8]} 36. Bf3 {[%clk 0:01:11.5]} 36... h4
{[%clk 0:00:15.7]} 37. gxh4 {[%clk 0:01:04.9]} 37... Nxf4+ {[%clk 0:00:15.5]}
38. Ke3 {[%clk 0:01:05.6]} 38... Ned5+ {[%clk 0:00:15.4]} 39. Bxd5 {[%clk
0:01:01.4]} 39... Nxd5+ {[%clk 0:00:15.5]} 40. Kf3 {[%clk 0:01:02.1]} 40... Ke5
{[%clk 0:00:12]} 41. Nc6+ {[%clk 0:01:01.9]} 41... Kd6 {[%clk 0:00:11.7]} 42.
Nb8 {[%clk 0:01:01.7]} 42... Kc5 {[%clk 0:00:10.3]} 43. h5 {[%clk 0:00:59.8]}
43... Nf6 {[%clk 0:00:08.9]} 44. Nxa6+ {[%clk 0:00:58.7]} 44... Kb5 {[%clk
0:00:08.9]} 45. Nc7+ {[%clk 0:00:59.2]} 45... Kxa5 {[%clk 0:00:09.1]} 46. h6
{[%clk 0:00:58]} 46... Kb6 {[%clk 0:00:08.6]} 47. Nd5+ {[%clk 0:00:57.7]} 47...
Nxd5 {[%clk 0:00:06.8]} 48. h7 {[%clk 0:00:58.2]} 48... Kc5 {[%clk 0:00:04.3]}
49. h8=Q {[%clk 0:00:57.9]} 49... f4 {[%clk 0:00:03.9]} 50. Qe5 {[%clk
0:00:56.9]} 50... f6 {[%clk 0:00:03.5]} 51. Qf5 {[%clk 0:00:56.6]} 51... Kd4
{[%clk 0:00:03.4]} 52. h4 {[%clk 0:00:55.7]} 52... Kc5 {[%clk 0:00:02.2]} 53. h5
{[%clk 0:00:55.4]} 53... Kd4 {[%clk 0:00:02.7]} 54. h6 {[%clk 0:00:55.6]} 54...
Ne3 {[%clk 0:00:03.2]} 55. Qxf4+ {[%clk 0:00:55.1]} 1-0

[Event "Early-Titled-Tuesday-Blitz-October-17-2023"]
[Site "Chess.com"]
[Date "2023.10.17"]
[Round "1"]
[White "NowInChess"]
[Black "chess_blitz00"]
[Result "0-1"]
[WhiteElo "2209"]
[BlackElo "2570"]
[TimeControl "180+1"]
[EndTime "8:07:28 PDT"]
[Termination "chess_blitz00 won on time"]

1. e4 {[%clk 0:03:00.9]} 1... d6 {[%clk 0:03:00.9]} 2. d3 {[%clk 0:02:57.8]}
2... Nf6 {[%clk 0:03:01.8]} 3. g3 {[%clk 0:02:58]} 3... b6 {[%clk 0:02:49.7]} 4.
Bg2 {[%clk 0:02:58.1]} 4... Bb7 {[%clk 0:02:50.6]} 5. f4 {[%clk 0:02:58]} 5...
c5 {[%clk 0:02:48.5]} 6. Nf3 {[%clk 0:02:57.7]} 6... Nbd7 {[%clk 0:02:46.8]} 7.
O-O {[%clk 0:02:57.3]} 7... e6 {[%clk 0:02:47.2]} 8. Nc3 {[%clk 0:02:56.3]} 8...
Be7 {[%clk 0:02:47.3]} 9. Qe2 {[%clk 0:02:38.7]} 9... a6 {[%clk 0:02:36.6]} 10.
a4 {[%clk 0:02:36.2]} 10... Qc7 {[%clk 0:02:36]} 11. Be3 {[%clk 0:02:30.9]}
11... d5 {[%clk 0:02:25.6]} 12. e5 {[%clk 0:02:29.4]} 12... Ng4 {[%clk
0:01:49.7]} 13. Bd2 {[%clk 0:02:26.3]} 13... h5 {[%clk 0:01:49.6]} 14. h3 {[%clk
0:02:14.5]} 14... Nh6 {[%clk 0:01:47.7]} 15. h4 {[%clk 0:02:14.8]} 15... Nf5
{[%clk 0:01:46.4]} 16. Kh2 {[%clk 0:02:15.3]} 16... Bc6 {[%clk 0:01:30.7]} 17.
Nd1 {[%clk 0:02:05.3]} 17... Nf8 {[%clk 0:01:06.6]} 18. c3 {[%clk 0:01:54.7]}
18... Ng6 {[%clk 0:00:52.9]} 19. Ne3 {[%clk 0:01:39.6]} 19... Nxe3 {[%clk
0:00:42.1]} 20. Bxe3 {[%clk 0:01:40.5]} 20... Bf8 {[%clk 0:00:22.1]} 21. d4
{[%clk 0:01:30.3]} 21... c4 {[%clk 0:00:15]} 22. Ng5 {[%clk 0:01:16.7]} 22...
Ne7 {[%clk 0:00:13.2]} 23. Bh3 {[%clk 0:01:12]} 23... Bd7 {[%clk 0:00:09.1]} 24.
Bf2 {[%clk 0:00:54.9]} 24... Qc6 {[%clk 0:00:09]} 25. Bg2 {[%clk 0:00:47]} 25...
Nf5 {[%clk 0:00:06.3]} 26. Rfc1 {[%clk 0:00:40.3]} 26... Be7 {[%clk 0:00:03.8]}
27. Qc2 {[%clk 0:00:35.3]} 27... f6 {[%clk 0:00:03.8]} 28. exf6 {[%clk
0:00:26.9]} 28... gxf6 {[%clk 0:00:04.7]} 29. Nf3 {[%clk 0:00:23.3]} 29... Rg8
{[%clk 0:00:05.3]} 30. Re1 {[%clk 0:00:21.4]} 30... Qc7 {[%clk 0:00:05.7]} 31.
Re2 {[%clk 0:00:11.7]} 31... O-O-O {[%clk 0:00:06.2]} 32. Rae1 {[%clk
0:00:10.5]} 32... Bd6 {[%clk 0:00:06.7]} 33. Rxe6 {[%clk 0:00:09.8]} 33... Bxe6
{[%clk 0:00:07.2]} 34. Rxe6 {[%clk 0:00:10.1]} 34... Ng7 {[%clk 0:00:04.1]} 35.
Re2 {[%clk 0:00:07.1]} 35... Bxf4 {[%clk 0:00:03.4]} 36. Bh3+ {[%clk 0:00:06.6]}
36... Kb7 {[%clk 0:00:02.9]} 37. gxf4 {[%clk 0:00:05.2]} 37... Qxf4+ {[%clk
0:00:03]} 38. Bg3 {[%clk 0:00:01]} 38... Qxf3 {[%clk 0:00:03.3]} 0-1